fUSD/lending_fUSD_20240423
["ID","MTS","AMOUNT","RATE_DAILY","PERIOD"]
[323276611,1713864645314,-500.0,0.00011589,2]
[323276612,1713864645323,-506.00049359,0.00011589,2]
[323276613,1713864645332,-500.0,0.00011589,2]
[323276614,1713864645340,-500.0,0.00011589,2]
[323276615,1713864645349,-173.80588472,0.00011589,2]
[323276616,1713864645358,-500.0,0.00011589,2]
[323276617,1713864645367,-500.0,0.00011589,2]
[323276618,1713864645375,-500.0,0.00011589,2]
[323276619,1713864645384,-500.0,0.00011589,2]
[323276620,1713864645393,-601.43,0.00011589,2]
[323276621,1713864645401,-500.0,0.00011589,2]
[323276622,1713864645410,-500.0,0.00011589,2]
[323276623,1713864645418,-500.0,0.00011589,2]
[323276624,1713864645427,-500.0,0.00011589,2]
[323276625,1713864645436,-500.0,0.00011589,2]
[323276626,1713864645445,-500.0,0.00011589,2]
[323276627,1713864645454,-500.0,0.00011589,2]
[323276628,1713864645462,-500.0,0.00011589,2]
[323276629,1713864645471,-500.0,0.00011589,2]
[323276630,1713864645484,-258.4555924,0.00011589,2]
[323276631,1713864645493,-500.0,0.00011589,2]
[323276632,1713864645502,-500.0,0.00011589,2]
[323276633,1713864645511,-500.0,0.00011589,2]
[323276634,1713864645520,-804.0,0.00011589,2]
[323276635,1713864645530,-500.0,0.00011589,2]
[323276636,1713864645539,-500.0,0.00011589,2]
[323276637,1713864645547,-500.0,0.00011589,2]
[323276638,1713864645558,-500.0,0.00011589,2]
[323276639,1713864645567,-902.92,0.00011589,2]
[323276640,1713864645576,-500.0,0.00011589,2]
[323276641,1713864645584,-500.0,0.00011589,2]
[323276642,1713864645593,-922.35,0.00011589,2]
[323276643,1713864645602,-808.6,0.00011589,2]
[323276644,1713864645611,-696.71,0.00011589,2]
[323276645,1713864645619,-500.0,0.00011589,2]
[323276646,1713864645628,-500.0,0.00011589,2]
[323276647,1713864645637,-299.68584755,0.00011589,2]
[323276648,1713864645645,-1079.92,0.00011589,2]
[323276649,1713864645654,-1230.68,0.00011589,2]
[323276650,1713864645663,-946.0,0.00011589,2]
[323276651,1713864645671,-648.06189457,0.00011589,2]
[323276652,1713864645680,-794.21,0.00011589,2]
[323276653,1713864645689,-500.0,0.00011589,2]
[323276654,1713864645698,-9568.12,0.00011589,2]
[323276655,1713864645706,-506.71028523,0.00011589,2]
[323276656,1713864645715,-500.0,0.00011589,2]
[323276657,1713864645727,-3360.94,0.00011589,2]
[323276658,1713864645736,-941.9,0.00011589,2]
[323276659,1713864645744,-888.03,0.00011589,2]
[323276660,1713864645753,-500.0,0.00011589,2]
[323276661,1713864645762,-554.14,0.00011589,2]
[323276662,1713864645771,-500.0,0.00011589,2]
[323276663,1713864645780,-711.22,0.00011589,2]
[323276664,1713864645789,-525.34,0.00011589,2]
[323276665,1713864645798,-838.28,0.00011589,2]
[323276666,1713864645808,-500.0,0.00011589,2]
[323276667,1713864645817,-185.65416208,0.00011589,2]
[323276668,1713864645825,-500.0,0.00011589,2]
[323276669,1713864645835,-500.0,0.00011589,2]
[323276670,1713864645843,-500.0,0.00011589,2]
[323276671,1713864645852,-959.26,0.00011589,2]
[323276672,1713864645861,-502.80728048,0.00011589,2]
[323276673,1713864645870,-500.0,0.00011589,2]
[323276674,1713864645879,-500.0,0.00011589,2]
[323276675,1713864645888,-325.21392625,0.00011589,2]
[323276676,1713864645898,-500.0,0.00011589,2]
[323276677,1713864645908,-810.18,0.00011589,2]
[323276678,1713864645917,-627.07876783,0.00011589,2]
[323276679,1713864645926,-1194.68,0.00011589,2]
[323276680,1713864645935,-987.36,0.00011589,2]
[323276681,1713864645944,-347.22688917,0.00011589,2]
[323276682,1713864645953,-445.35831148,0.00011589,2]
[323276683,1713864645961,-553.93,0.00011589,2]
[323276684,1713864645970,-500.0,0.00011589,2]
[323276685,1713864645980,-574.10426977,0.00011589,2]
[323276686,1713864645989,-500.0,0.00011589,2]
[323276687,1713864645998,-500.0,0.00011589,2]
[323276688,1713864646007,-500.0,0.00011589,2]
[323276689,1713864646016,-500.0,0.00011589,2]
[323276690,1713864646025,-500.0,0.00011589,2]
[323276691,1713864646034,-500.0,0.00011589,2]
[323276692,1713864646043,-500.0,0.00011589,2]
[323276693,1713864646052,-10462.22,0.00011589,2]
[323276694,1713864646061,-500.0,0.00011589,2]
[323276695,1713864646070,-1557.79,0.00011589,2]
[323276696,1713864646079,-500.0,0.00011589,2]
[323276697,1713864646088,-1979.48,0.00011589,2]
[323276698,1713864646096,-393.97560139,0.00011589,2]
[323276699,1713864646105,-500.0,0.00011589,2]
[323276700,1713864646114,-500.0,0.00011589,2]
[323276701,1713864646123,-500.0,0.00011589,2]
[323276702,1713864646132,-500.0,0.00011589,2]
[323276703,1713864646141,-500.0,0.00011589,2]
[323276704,1713864646152,-500.0,0.00011589,2]
[323276705,1713864646161,-1514.36,0.00011589,2]
[323276706,1713864646170,-3377.4857,0.00011589,2]
[323276707,1713864646179,-16815.7105,0.0001159,2]
[323276708,1713864646188,-69908.8184,0.0001159,2]
[323276709,1713864646197,-500.0,0.0001159,2]
[323276710,1713864646206,-500.0,0.000116,4]
[323276711,1713864646215,-3418.45849101,0.00011676,2]
[323276712,1713864646224,-315.48373328,0.00011687,2]
[323276713,1713864646233,-881.72521313,0.00011687,2]
[323276714,1713864646241,-447.29038375,0.00011687,2]
[323276715,1713864646250,-1991.33653532,0.00011687,2]
[323276716,1713864646259,-210.59510764,0.00011687,2]
[323276717,1713864646268,-682.91244968,0.00011687,2]
[323276718,1713864646277,-164.4337922,0.00011687,2]
[323276719,1713864646286,-1146.13869524,0.00011687,2]
[323276720,1713864646294,-200.7780972,0.00011687,2]
[323276721,1713864646303,-155.25533383,0.00011687,2]
[323276722,1713864646312,-621.61066355,0.00011687,2]
[323276723,1713864646321,-194.75745917,0.00011687,2]
[323276724,1713864646330,-167.52787288,0.00011687,2]
[323276725,1713864646339,-444.3911085,0.00011687,2]
[323276726,1713864646348,-181.40893477,0.00011687,2]
[323276727,1713864646358,-181.28407634,0.00011687,2]
[323276728,1713864646366,-785.14568492,0.00011687,2]
[323276729,1713864646375,-1163.66340728,0.00011687,2]
[323276730,1713864646384,-321.86410706,0.00011687,2]
[323276731,1713864646393,-206.37011773,0.00011687,2]
[323276732,1713864646403,-155.75086121,0.00011687,2]
[323276733,1713864646412,-342.22232771,0.00011687,2]
[323276734,1713864646421,-175.69423454,0.00011687,2]
[323276735,1713864646430,-155.21727484,0.00011687,2]
[323276736,1713864646438,-782.66617723,0.00011687,2]
[323276737,1713864646447,-281.53954571,0.00011687,2]
[323276738,1713864646456,-410.31474454,0.00011687,2]
[323276739,1713864646465,-509.10572228,0.00011687,2]
[323276740,1713864646476,-262.21,0.00011687,2]
[323276741,1713864646486,-15411.00338024,0.00011688,2]
[323276742,1713864646494,-3006.10621285,0.00011688,2]
[323276743,1713864646503,-500.0,0.00011688,2]
[323276744,1713864646512,-1172.81,0.00011689,2]
[323276745,1713864646522,-1196.54,0.00011689,2]
[323276746,1713864646531,-500.0,0.00011689,2]
[323276747,1713864646540,-500.0,0.00011689,2]
[323276748,1713864646549,-500.0,0.00011689,2]
[323276749,1713864646558,-519.94968374,0.00011689,2]
[323276750,1713864646567,-500.0,0.00011689,2]
[323276751,1713864646576,-938.39,0.00011689,2]
[323276752,1713864646585,-500.0,0.00011689,2]
[323276753,1713864646594,-1954.4,0.00011689,2]
[323276754,1713864646603,-500.0,0.00011689,2]
[323276755,1713864646612,-698.38,0.00011689,2]
[323276756,1713864646621,-1239.84,0.00011689,2]
[323276757,1713864646629,-500.0,0.00011689,2]
[323276758,1713864646638,-1596.08,0.00011689,2]
[323276759,1713864646647,-655.27,0.00011689,2]
[323276760,1713864646656,-588.0,0.00011689,2]
[323276761,1713864646665,-500.0,0.00011689,2]
[323276762,1713864646674,-500.0,0.00011689,2]
[323276763,1713864646684,-500.0,0.00011689,2]
[323276764,1713864646693,-500.0,0.00011689,2]
[323276765,1713864646701,-500.0,0.00011689,2]
[323276766,1713864646710,-500.0,0.00011689,2]
[323276767,1713864646719,-780.47,0.00011689,2]
[323276768,1713864646728,-500.0,0.00011689,2]
[323276769,1713864646737,-500.0,0.00011689,2]
[323276770,1713864646746,-335.70415235,0.00011689,2]
[323276771,1713864646781,-92.0741563,0.00011689,2]
[323276772,1713864646790,-500.0,0.00011689,2]
[323276774,1713864646799,-500.0,0.00011689,2]
[323276775,1713864646808,-2223.09,0.00011689,2]
[323276776,1713864646817,-500.0,0.00011689,2]
[323276777,1713864646825,-484.32336462,0.00011689,2]
[323276778,1713864646834,-591.68551201,0.00011689,2]
[323276779,1713864646843,-500.0,0.00011689,2]
[323276780,1713864646852,-1633.47,0.00011689,2]
[323276781,1713864646861,-427.15756328,0.00011689,2]
[323276782,1713864646870,-500.0,0.0001169,2]
[323276783,1713864646879,-500.0,0.0001169,2]
[323276784,1713864646888,-500.48,0.0001169,2]
[323276785,1713864646899,-528.42,0.0001169,2]
[323276786,1713864646908,-500.0,0.0001169,2]
[323276787,1713864646917,-500.0,0.0001169,2]
[323276788,1713864646927,-500.0,0.0001169,2]
[323276789,1713864646936,-500.0,0.0001169,2]
[323276790,1713864646945,-821.55,0.0001169,2]
[323276791,1713864646954,-727.56,0.0001169,2]
[323276792,1713864646964,-500.0,0.0001169,2]
[323276793,1713864646973,-500.0,0.0001169,2]
[323276794,1713864646982,-500.0,0.0001169,2]
[323276795,1713864646991,-500.0,0.0001169,2]
[323276796,1713864647001,-500.0,0.0001169,2]
[323276797,1713864647010,-235.40090498,0.00011694,2]
[323276798,1713864647019,-500.0,0.00011699,2]
[323276799,1713864647029,-500.0,0.00011699,2]
[323276800,1713864647038,-500.0,0.00011699,2]
[323276801,1713864647047,-500.0,0.00011699,2]
[323276802,1713864647056,-500.0,0.00011699,2]
[323276803,1713864647066,-630.54,0.00011699,2]
[323276804,1713864647075,-500.0,0.00011699,2]
[323276805,1713864647085,-500.0,0.00011699,2]
[323276806,1713864647094,-500.0,0.00011699,2]
[323276807,1713864647103,-500.0,0.00011699,2]
[323276808,1713864647112,-500.0,0.00011699,2]
[323276809,1713864647121,-500.0,0.00011699,2]
[323276810,1713864647131,-771.07,0.00011699,2]
[323276811,1713864647140,-197.57532904,0.00011699,2]
[323276812,1713864647150,-500.0,0.00011699,2]
[323276813,1713864647159,-714.79,0.00011699,2]
[323276814,1713864647169,-500.0,0.00011699,2]
[323276815,1713864647178,-500.0,0.00011699,2]
[323276816,1713864647187,-500.0,0.00011699,2]
[323276817,1713864647196,-500.0,0.00011699,2]
[323276818,1713864647205,-500.0,0.00011699,2]
[323276819,1713864647214,-500.0,0.00011699,2]
[323276820,1713864647223,-287.06829841,0.00011699,2]
[323276821,1713864647232,-480.85361685,0.00011699,2]
[323276822,1713864647242,-598.81346895,0.00011699,2]
[323276823,1713864647250,-89.54438521,0.00011699,2]
[323276824,1713864647263,-410.45561479,0.00011699,2]
[323276825,1713864647272,-500.0,0.00011699,2]
[323276826,1713864647281,-539.28,0.00011699,2]
[323276827,1713864647290,-576.76,0.00011699,2]
[323276828,1713864647300,-1014.74,0.00011699,2]
[323276829,1713864647309,-573.49650135,0.00011699,2]
[323276830,1713864647319,-8016.10763829,0.000117,2]
[323276831,1713864647373,-21338.51509011,0.000117,2]
[323276832,1713864647382,-1100.0,0.000117,4]
[323276833,1713864647392,-616.16599,0.000117,2]
[323276834,1713864647403,-500.0,0.0001173,2]
[323276835,1713864647413,-6272.55726101,0.00011763,2]
[323276836,1713864647423,-575.15,0.000118,2]
[323276837,1713864647433,-150.65,0.000118,2]
[323276838,1713864647442,-851.31,0.000118,2]
[323276839,1713864647452,-910.21,0.000118,2]
[323276840,1713864647462,-705.35,0.000118,2]
[323276841,1713864647472,-910.21,0.000118,2]
[323276842,1713864647485,-205.92,0.000118,2]
[323276843,1713864647495,-1700.0,0.000118,4]
[323276844,1713864647504,-1000.0,0.00011807,2]
[323276845,1713864647515,-3916.8716,0.00011807,2]
[323276846,1713864647525,-1119.85,0.00011855,2]
[323276847,1713864647535,-500.0,0.00011855,2]
[323276848,1713864647545,-500.0,0.00011855,2]
[323276849,1713864647556,-500.0,0.00011855,2]
[323276850,1713864647566,-561.63,0.00011855,2]
[323276851,1713864647576,-500.0,0.00011855,2]
[323276852,1713864647586,-17578.01005919,0.00011856,2]
[323276853,1713864647954,-610.4844,0.00011856,2]
[323276854,1713864648786,-368.20071861,0.00011856,2]
[323276855,1713864648805,-1434.8542506,0.00011856,2]
[323276856,1713864648817,-1315.7726701,0.00011856,2]
[323276857,1713864648828,-1077.55236069,0.00011856,2]
[323276858,1713864648838,-500.0,0.00011856,2]
[323276859,1713864648847,-500.0,0.00011856,2]
[323276860,1713864648856,-1484.89,0.00011856,2]
[323276861,1713864648865,-500.0,0.00011856,2]
[323276862,1713864648875,-6453.02,0.00011856,2]
[323276863,1713864648884,-2245.04,0.00011856,2]
[323276864,1713864648894,-500.0,0.00011856,2]
[323276865,1713864648904,-500.0,0.00011856,2]
[323276866,1713864648913,-640.85186353,0.00011856,2]
[323276867,1713864648970,-272.42813647,0.00011856,2]
[323276868,1713864648980,-266.63469494,0.00011856,2]
[323276869,1713864650116,-500.0,0.00011581,2]
[323276870,1713864650126,-500.0,0.00011588,2]
[323276871,1713864650135,-233.36530506,0.00011856,2]
[323276872,1713864650144,-500.0,0.00011856,2]
[323276873,1713864650154,-1367.33,0.00011856,2]
[323276874,1713864650164,-818.26,0.00011856,2]
[323276875,1713864650173,-839.19469494,0.00011856,2]
[323276877,1713865044142,563.88,0.00010863,2]
[323276878,1713865110679,401.51,8.9e-05,2]
[323276879,1713865111001,401.51,0.00011164,2]
[323276880,1713865132583,23351.29,0.000108,2]
[323276881,1713865251265,639.75,0.00010776,2]
[323276882,1713865273930,7499.77469233,0.000108,2]
[323276883,1713865280949,322.88850488,8.64e-05,2]
[323276884,1713865286975,155.0,0.000108,2]
[323276885,1713865289943,14394.96102174,0.000108,2]
[323276886,1713865298331,-4459.3547,0.00011282,2]
[323276887,1713865298352,-3377.4857,0.00011382,2]
[323276888,1713865298371,-155.5395067,0.0001148,2]
[323276889,1713865298391,-532.89332388,0.0001148,2]
[323276890,1713865298410,-523.86545643,0.0001148,2]
[323276891,1713865298430,-1603.33188358,0.0001148,2]
[323276892,1713865298451,-4347.52942941,0.00011481,2]
[323276893,1713865308884,155.0,0.000108,2]
[323276894,1713865309948,17273.95322609,0.000108,2]
[323276895,1713865327965,14394.96102174,0.000108,2]
[323276896,1713865330579,1284.39,0.00025108,120]
[323276897,1713865334986,181.27500451,0.000108,2]
[323276898,1713865335898,19052.32105298,0.00010752,2]
[323276899,1713865335925,4847.67894702,0.00010752,2]
[323276900,1713865344377,-1781.83925523,0.00011379,2]
[323276901,1713865344398,-308.6415,0.0001138,2]
[323276902,1713865344418,-11970.0679379,0.00011481,2]
[323276903,1713865344437,-500.0,0.00011481,2]
[323276904,1713865344458,-439.45130687,0.00011481,2]
[323276905,1713865448067,185.99,0.00010641,2]
[323276906,1713865515010,14394.96102174,0.00010641,2]
[323276907,1713865532973,7499.77469233,0.00010641,2]
[323276910,1713865552128,548.89,0.0001063,2]
[323276911,1713865555251,7499.77469233,0.00010641,2]
[323276912,1713865573133,7499.77469233,0.0001063,2]
[323276913,1713865588967,7499.77469233,0.0001063,2]
[323276914,1713865609483,7499.77469233,0.0001063,2]
[323276915,1713865625636,7499.77469233,0.0001063,2]
[323276916,1713865629891,1775.55226304,0.00011181,2]
[323276917,1713865636033,700.0,0.000109,3]
[323276918,1713865641475,7499.77469233,0.0001063,2]
[323276926,1713865658972,295.05,0.00010706,2]
[323276927,1713865665483,7499.77469233,0.0001063,2]
[323276928,1713865678110,250.0,0.00010651,2]
[323276929,1713865690020,7499.77469233,0.00010706,2]
[323276930,1713865701793,2031.4,0.00010618,2]
[323276931,1713865701984,7499.77469233,0.00010706,2]
[323276932,1713865702679,402.7308449,8.71e-05,2]
[323276933,1713865702701,259.0691551,8.71e-05,2]
[323276934,1713865703038,661.8,0.00010974,2]
[323276935,1713865723980,993.25231044,0.00010706,2]
[323276997,1713865809412,2238.38,0.00010568,2]
[323277005,1713865831874,-1329.0277,0.0001127,2]
[323277092,1713865837683,-1182.954,0.0001127,2]
[323277093,1713865837693,-598.6796,0.00011281,2]
[323277094,1713865837702,-960.9991,0.00011381,2]
[323277095,1713865837711,-3155.4303,0.00011381,2]
[323277096,1713865837721,-1000.0,0.00011381,2]
[323277097,1713865837730,-315.07461082,0.00011381,2]
[323277098,1713865837741,-501.74228918,0.00011381,2]
[323277099,1713865837750,-249.64766582,0.00011382,2]
[323277100,1713865837760,-150.0,0.00011397,2]
[323277101,1713865837769,-5055.0,0.00011428,2]
[323277102,1713865837779,-10000.0,0.00011428,2]
[323277103,1713865837788,-10000.0,0.00011428,2]
[323277104,1713865837799,-150.0,0.00011452,2]
[323277105,1713865837811,-1500.0,0.00011469,2]
[323277106,1713865837820,-150.0,0.0001147,2]
[323277107,1713865837830,-182.48888617,0.00011471,2]
[323277108,1713865837839,-1244.65634193,0.00011479,2]
[323277109,1713865837849,-220.66660495,0.00011479,2]
[323277110,1713865837859,-14623.87376391,0.00011479,2]
[323277111,1713865837868,-538.23,0.00011479,2]
[323277112,1713865837877,-1018.13,0.00011479,2]
[323277113,1713865837886,-1117.6,0.00011479,2]
[323277114,1713865837897,-500.0,0.00011479,2]
[323277116,1713865837906,-709.19,0.00011479,2]
[323277117,1713865837915,-500.0,0.00011479,2]
[323277119,1713865837923,-500.0,0.00011479,2]
[323277121,1713865837933,-33378.44390074,0.0001148,2]
[323277123,1713865837942,-500.0,0.0001148,2]
[323277125,1713865837952,-771.08,0.0001148,2]
[323277127,1713865837961,-500.0,0.0001148,2]
[323277129,1713865837970,-500.0,0.0001148,2]
[323277131,1713865837979,-515.25988869,0.0001148,2]
[323277133,1713865837989,-500.0,0.0001148,2]
[323277135,1713865837998,-515.19,0.0001148,2]
[323277137,1713865838007,-500.0,0.0001148,2]
[323277139,1713865838017,-500.0,0.0001148,2]
[323277141,1713865838027,-500.0,0.0001148,2]
[323277143,1713865838036,-500.0,0.0001148,2]
[323277145,1713865838045,-503.58412415,0.0001148,2]
[323277147,1713865838054,-500.0,0.0001148,2]
[323277149,1713865838063,-502.92718545,0.0001148,2]
[323277151,1713865838075,-500.0,0.0001148,2]
[323277153,1713865838085,-500.0,0.0001148,2]
[323277155,1713865838094,-546.97,0.0001148,2]
[323277157,1713865838104,-500.0,0.0001148,2]
[323277159,1713865838113,-169.99078475,0.0001148,2]
[323277161,1713865838122,-1064.13,0.0001148,2]
[323277163,1713865838132,-500.0,0.0001148,2]
[323277165,1713865838141,-502.32250162,0.0001148,2]
[323277167,1713865838150,-502.03244005,0.0001148,2]
[323277169,1713865838160,-500.0,0.0001148,2]
[323277171,1713865838170,-500.0,0.0001148,2]
[323277173,1713865838179,-500.0,0.0001148,2]
[323277175,1713865838190,-500.0,0.0001148,2]
[323277178,1713865838200,-500.0,0.0001148,2]
[323277179,1713865838209,-500.0,0.0001148,2]
[323277181,1713865838218,-502.95101655,0.0001148,2]
[323277184,1713865838228,-500.0,0.0001148,2]
[323277185,1713865838237,-501.34016465,0.0001148,2]
[323277188,1713865838246,-1181.72,0.0001148,2]
[323277190,1713865838255,-500.0,0.0001148,2]
[323277191,1713865838264,-500.0,0.0001148,2]
[323277194,1713865838273,-500.0,0.0001148,2]
[323277195,1713865838282,-500.0,0.0001148,2]
[323277198,1713865838292,-500.0,0.0001148,2]
[323277200,1713865838301,-500.0,0.0001148,2]
[323277202,1713865838310,-500.0,0.0001148,2]
[323277203,1713865838319,-500.0,0.0001148,2]
[323277205,1713865838328,-500.0,0.0001148,2]
[323277207,1713865838337,-500.0,0.0001148,2]
[323277209,1713865838345,-500.0,0.0001148,2]
[323277211,1713865838354,-500.0,0.0001148,2]
[323277214,1713865838365,-500.0,0.0001148,2]
[323277215,1713865838374,-500.0,0.0001148,2]
[323277217,1713865838383,-448.79363045,0.0001148,2]
[323277219,1713865838393,-500.0,0.0001148,2]
[323277222,1713865838402,-500.0,0.0001148,2]
[323277224,1713865838411,-500.0,0.0001148,2]
[323277225,1713865838420,-500.0,0.0001148,2]
[323277227,1713865838429,-929.95,0.0001148,2]
[323277229,1713865838440,-262.21,0.0001148,2]
[323277231,1713865838449,-500.0,0.0001148,2]
[323277233,1713865838458,-500.0,0.0001148,2]
[323277235,1713865838467,-290.01,0.0001148,2]
[323277237,1713865838476,-500.0,0.0001148,2]
[323277239,1713865838485,-500.0,0.0001148,2]
[323277241,1713865838494,-500.0,0.0001148,2]
[323277243,1713865838503,-500.0,0.0001148,2]
[323277245,1713865838512,-500.0,0.0001148,2]
[323277247,1713865838520,-500.0,0.0001148,2]
[323277249,1713865838530,-500.0,0.0001148,2]
[323277251,1713865838539,-500.0,0.0001148,2]
[323277253,1713865838548,-500.0,0.0001148,2]
[323277255,1713865838557,-500.0,0.0001148,2]
[323277257,1713865838566,-4021.53,0.0001148,2]
[323277259,1713865838575,-500.0,0.0001148,2]
[323277261,1713865838584,-500.0,0.0001148,2]
[323277263,1713865838594,-500.0,0.0001148,2]
[323277266,1713865838603,-500.0,0.0001148,2]
[323277268,1713865838614,-500.0,0.0001148,2]
[323277270,1713865838623,-620.87,0.0001148,2]
[323277272,1713865838632,-2975.72,0.0001148,2]
[323277274,1713865838642,-500.0,0.0001148,2]
[323277275,1713865838653,-1250.64,0.0001148,2]
[323277277,1713865838663,-500.0,0.0001148,2]
[323277280,1713865838673,-500.0,0.0001148,2]
[323277282,1713865838682,-500.0,0.0001148,2]
[323277284,1713865838693,-500.0,0.0001148,2]
[323277286,1713865838702,-597.43,0.0001148,2]
[323277288,1713865838711,-500.0,0.0001148,2]
[323277290,1713865838719,-500.0,0.0001148,2]
[323277292,1713865838728,-500.0,0.0001148,2]
[323277294,1713865838737,-500.0,0.0001148,2]
[323277295,1713865838746,-500.0,0.0001148,2]
[323277296,1713865838755,-976.43,0.0001148,2]
[323277297,1713865838764,-500.0,0.0001148,2]
[323277298,1713865838773,-500.0,0.0001148,2]
[323277299,1713865838782,-500.0,0.0001148,2]
[323277300,1713865838791,-500.0,0.0001148,2]
[323277301,1713865838800,-500.0,0.0001148,2]
[323277302,1713865838810,-500.0,0.0001148,2]
[323277303,1713865838823,-500.0,0.0001148,2]
[323277304,1713865838832,-749.6,0.0001148,2]
[323277305,1713865838841,-500.0,0.0001148,2]
[323277306,1713865838850,-501.25219496,0.0001148,2]
[323277308,1713865838859,-500.0,0.0001148,2]
[323277310,1713865838869,-500.0,0.0001148,2]
[323277312,1713865838878,-500.0,0.0001148,2]
[323277314,1713865838891,-500.0,0.0001148,2]
[323277316,1713865838900,-500.0,0.0001148,2]
[323277318,1713865838909,-500.0,0.0001148,2]
[323277320,1713865838919,-500.0,0.0001148,2]
[323277322,1713865838929,-500.0,0.0001148,2]
[323277324,1713865838940,-628.21,0.0001148,2]
[323277326,1713865838950,-500.0,0.0001148,2]
[323277328,1713865838959,-1423.02,0.0001148,2]
[323277330,1713865838968,-500.0,0.0001148,2]
[323277332,1713865838977,-500.0,0.0001148,2]
[323277334,1713865838987,-500.0,0.0001148,2]
[323277336,1713865838996,-500.0,0.0001148,2]
[323277338,1713865839006,-500.0,0.0001148,2]
[323277340,1713865839015,-924.07,0.0001148,2]
[323277343,1713865839025,-500.0,0.0001148,2]
[323277345,1713865839034,-500.0,0.0001148,2]
[323277346,1713865839043,-500.0,0.0001148,2]
[323277349,1713865839052,-500.0,0.0001148,2]
[323277351,1713865839062,-1042.2,0.0001148,2]
[323277353,1713865839071,-500.0,0.0001148,2]
[323277355,1713865839080,-460.71191539,0.0001148,2]
[323277357,1713865839089,-1100.55,0.0001148,2]
[323277359,1713865839098,-500.0,0.0001148,2]
[323277361,1713865839107,-500.0,0.0001148,2]
[323277363,1713865839116,-500.0,0.0001148,2]
[323277364,1713865839126,-500.0,0.0001148,2]
[323277367,1713865839135,-597.25606466,0.0001148,2]
[323277369,1713865839145,-621.16623162,0.0001148,2]
[323277371,1713865839154,-500.0,0.0001148,2]
[323277373,1713865839163,-618.92,0.0001148,2]
[323277375,1713865839172,-500.0,0.0001148,2]
[323277376,1713865839181,-500.0,0.0001148,2]
[323277378,1713865839192,-500.0,0.0001148,2]
[323277380,1713865839201,-500.0,0.0001148,2]
[323277382,1713865839210,-500.0,0.0001148,2]
[323277384,1713865839218,-500.0,0.0001148,2]
[323277386,1713865839228,-500.0,0.0001148,2]
[323277389,1713865839238,-583.82417728,0.0001148,2]
[323277390,1713865839247,-500.0,0.0001148,2]
[323277392,1713865839256,-500.0,0.0001148,2]
[323277395,1713865839266,-6184.14,0.0001148,2]
[323277396,1713865839275,-546.07273924,0.0001148,2]
[323277399,1713865839285,-500.0,0.0001148,2]
[323277400,1713865839295,-500.0,0.0001148,2]
[323277403,1713865839304,-150.0,0.0001148,2]
[323277406,1713865839313,-526.58,0.0001148,2]
[323277407,1713865839323,-500.0,0.0001148,2]
[323277409,1713865839332,-500.0,0.0001148,2]
[323277411,1713865839341,-500.0,0.0001148,2]
[323277414,1713865839351,-211.42,0.0001148,2]
[323277416,1713865839360,-500.0,0.0001148,2]
[323277418,1713865839369,-5000.0,0.0001148,2]
[323277420,1713865839378,-499.99,0.0001148,2]
[323277422,1713865839387,-1366.22,0.0001148,2]
[323277424,1713865839396,-505.62263145,0.0001148,2]
[323277426,1713865839405,-2831.05,0.0001148,2]